bitfinex/quotes_ETHUSD_20240610
["timestamp","ask_amount","ask_price","bid_price","bid_amount"]
[1718043150500,0.85086524,3695.3,3695.2,3.309128]
[1718043150824,1.0,3695.7,3695.6,2.70592]
[1718043150825,1.56721041,3695.7,3695.6,2.70592]
[1718043150997,1.56721041,3695.7,3695.6,3.41892]
[1718043151196,1.0,3695.7,3695.6,3.41892]
[1718043152199,1.0,3695.7,3695.6,2.70592]
[1718043152538,1.0,3695.7,3695.6,3.41892]
[1718043152712,1.0,3695.7,3695.6,2.70592]
[1718043152913,1.0,3695.7,3695.6,3.41892]
[1718043153313,1.0,3695.7,3695.6,5.67312]
[1718043153926,1.85086524,3695.7,3695.6,5.67312]
[1718043154105,1.85086524,3695.7,3695.6,6.28222334]
[1718043155546,1.0,3695.7,3695.6,6.28222334]
[1718043156952,1.0,3695.7,3695.6,5.56922334]
[1718043157137,1.0,3695.7,3695.6,5.67312]
[1718043158449,1.0,3695.7,3695.6,2.70592]
[1718043158781,1.0,3695.7,3695.6,3.41892]
[1718043159675,1.0,3695.7,3695.6,2.70592]
[1718043159871,1.0,3695.7,3695.6,3.41892]
[1718043164903,1.0,3695.7,3695.6,2.70592]
[1718043170767,1.0,3695.7,3695.6,2.7040532]
[1718043174506,1.0,3695.8,3695.6,2.7040532]
[1718043177029,1.0,3695.8,3695.7,0.713]
[1718043181269,1.0,3695.8,3695.6,2.7040532]
[1718043183567,1.0,3695.8,3695.7,0.713]
[1718043190098,0.86798984,3696.2,3695.7,0.713]
[1718043190099,0.56675941,3696.1,3695.7,1.29074532]
[1718043190380,1.0171246,3696.2,3696.0,0.713]
[1718043190381,1.58388401,3696.2,3696.0,0.713]
[1718043190559,1.0171246,3696.2,3696.0,0.713]
[1718043191156,1.58388401,3696.2,3696.0,0.713]
[1718043191376,1.0171246,3696.2,3696.0,0.713]
[1718043191763,1.0171246,3696.2,3696.0,3.41862]
[1718043192306,1.0171246,3696.2,3696.1,0.05410893]
[1718043192477,0.0171246,3696.2,3696.1,2.9301]
[1718043192676,0.0171246,3696.2,3696.1,3.6431]
[1718043193205,0.85086524,3697.3,3697.2,2.70474]
[1718043193411,1.0,3698.1,3697.6,2.70445]
[1718043193609,1.0,3698.1,3698.0,0.713]
[1718043193943,1.0,3698.1,3698.0,3.78846]
[1718043194233,1.0,3698.1,3698.0,3.07546]
[1718043194390,1.0,3698.5,3698.4,2.70387]
[1718043194700,1.0,3698.5,3698.4,3.41687]
[1718043194903,1.0,3698.5,3698.4,2.70387]
[1718043195154,1.0,3698.5,3698.4,3.41687]
[1718043195803,1.0,3698.5,3698.4,2.70387]
[1718043196000,1.0,3698.5,3697.6,2.4648]
[1718043196001,1.0,3698.5,3698.0,2.70409]
[1718043196220,1.1713,3698.5,3698.0,2.70409]
[1718043197146,1.1713,3698.5,3697.6,2.7044]
[1718043197147,1.0,3697.7,3697.6,2.7044]
[1718043197336,1.0,3697.7,3697.6,3.4174]
[1718043197541,1.0,3698.1,3697.9,2.70423]
[1718043197740,1.0,3698.1,3698.0,0.713]
[1718043198734,1.0,3698.6,3698.0,0.713]
[1718043198934,1.33331,3698.6,3697.4,7.44]
[1718043199148,1.33331,3698.6,3698.1,2.70406]
[1718043199443,1.0,3698.6,3698.1,3.41706]
[1718043199616,1.0,3698.6,3698.1,2.70406]
[1718043201673,1.0,3698.2,3698.1,2.70406]
[1718043203674,1.0,3698.2,3697.8,2.7043]
[1718043208760,1.0,3698.2,3698.0,2.70409]
[1718043209778,1.0,3698.2,3698.1,0.713]
[1718043209983,1.0,3698.6,3698.2,2.70398]
[1718043223727,1.0,3698.6,3698.2,3.41698]
[1718043223957,1.0,3698.6,3698.0,3.0919]
[1718043225003,1.0,3698.6,3698.0,2.3789]
[1718043225204,1.0,3698.6,3698.2,0.713]
[1718043226524,1.0,3698.6,3698.0,3.0919]
[1718043227118,1.0,3698.6,3698.0,3.671511]
[1718043228922,3.70375,3698.6,3698.0,2.958511]
[1718043229128,3.70375,3698.6,3698.0,2.3789]
[1718043229305,2.70389,3698.4,3698.0,2.3789]
[1718043229836,1.0,3698.6,3698.0,2.3789]
[1718043232305,1.0,3698.6,3698.0,5.08303]
[1718043234644,1.0,3698.6,3698.2,2.704]
[1718043236232,1.0,3698.6,3698.3,0.57959]
[1718043236424,1.0,3698.6,3698.4,2.70387]
[1718043237035,1.0,3699.0,3698.8,2.70357]
[1718043245416,1.0,3699.0,3698.8,3.41657]
[1718043245647,1.0,3699.0,3698.9,2.3654]
[1718043248963,0.713,3699.7,3699.0,2.7034]
[1718043249564,2.70301,3699.6,3699.0,2.7034]
[1718043250280,1.0,3699.2,3699.0,2.7034]
[1718043254126,1.0,3699.2,3698.7,2.70359]
[1718043257037,1.0,3698.6,3698.2,9.868]
[1718043257239,1.0,3698.6,3698.4,2.70383]
[1718043258423,1.0,3698.6,3698.2,7.44]
[1718043258623,2.4798,3698.8,3698.1,2.70405]
[1718043258624,1.0,3698.2,3698.1,2.70405]
[1718043261477,1.0,3698.2,3697.8,2.70426]
[1718043261784,1.13440308,3699.1,3697.5,10.14448]
[1718043261785,1.0,3697.8,3697.5,10.14448]
[1718043261983,1.0,3697.4,3697.2,2.70473]
[1718043262274,1.0,3697.4,3697.2,3.41773]
[1718043262777,1.0,3697.4,3697.2,2.70473]
[1718043262976,1.0,3697.4,3697.2,3.94093619]
[1718043263831,1.0,3697.8,3697.5,2.7045]
[1718043264025,1.0,3698.2,3697.7,2.70436]
[1718043264226,1.0,3698.2,3697.8,0.713]
[1718043264474,1.0,3698.2,3698.0,0.713]
[1718043264767,2.7036,3698.8,3698.0,0.713]
[1718043264768,1.0,3698.6,3698.0,0.713]
[1718043264954,1.0,3698.6,3698.2,0.713]
[1718043265864,1.0,3698.6,3698.1,2.70409]
[1718043289798,2.486,3698.5,3698.1,2.70409]
[1718043291960,1.0,3698.6,3698.1,2.70409]
[1718043297114,1.0,3698.2,3697.8,2.70426]
[1718043297314,3.3701,3698.2,3697.8,2.70426]
[1718043297627,1.0,3697.8,3697.5,10.1445]
[1718043297799,1.0,3697.8,3697.5,2.7045]
[1718043298004,1.0,3697.8,3697.5,3.27773216]
[1718043300244,1.0,3697.8,3697.5,2.7045]
[1718043300393,1.0,3697.8,3697.4,0.04702156]
[1718043300590,2.4154,3697.7,3697.4,0.04702156]
[1718043301525,1.0,3697.2,3697.0,7.44]
[1718043301730,5.11979,3697.7,3696.5,2.2838]
[1718043301731,1.0,3696.8,3696.6,2.75218877]
[1718043302030,1.0,3696.8,3696.7,0.711]
[1718043302350,1.0,3696.8,3696.6,2.75218877]
[1718043303658,1.0,3696.8,3696.6,0.04703877]
[1718043303798,1.0,3696.8,3696.4,7.44]
[1718043303993,1.0,3696.8,3696.5,3.41625]
[1718043304204,1.0,3696.8,3696.5,2.70525]
[1718043304424,2.4781,3697.1,3696.5,2.70525]
[1718043304608,2.4781,3697.1,3696.4,8.151]
[1718043304609,1.0,3697.2,3696.7,2.70508]
[1718043310151,1.0,3697.2,3696.7,2.67908]
[1718043310525,1.0,3697.2,3696.9,2.70493]
[1718043310850,1.13440308,3698.0,3696.9,2.70493]
[1718043310851,1.0,3697.6,3697.1,2.70476]
[1718043311316,1.0,3697.6,3696.8,2.70499]
[1718043311317,1.0,3697.2,3696.8,2.70499]
[1718043311522,1.0,3697.2,3696.5,2.70522]
[1718043311929,1.0,3697.2,3696.7,2.70508]
[1718043313545,1.0,3697.2,3696.9,2.70494]
[1718043318212,1.0,3697.2,3696.6,3.1425]
[1718043318213,1.0,3697.2,3696.6,5.84763]
[1718043318547,1.0,3697.2,3696.6,3.41613]
[1718043320445,1.0,3697.2,3696.6,2.70513]
[1718043320845,1.0,3696.7,3696.6,2.70513]
[1718043322160,1.0,3697.1,3696.6,2.70513]
[1718043322512,1.0,3697.1,3696.6,3.41613]
[1718043323711,1.0,3697.1,3696.6,5.88923]
[1718043325041,1.0,3697.1,3696.8,2.70503]
[1718043325456,1.0,3697.1,3697.0,2.70489]
[1718043325633,1.0,3697.6,3697.0,2.4731]
[1718043325958,1.0,3697.6,3697.2,0.711]
[1718043326635,1.0,3697.6,3697.4,2.70458]
[1718043327554,1.0,3698.0,3697.7,2.70437]
[1718043328056,1.0,3698.0,3697.9,2.70423]
[1718043330522,1.0,3698.0,3697.9,3.293063]
[1718043330727,1.0,3698.4,3698.2,2.70398]
[1718043333044,2.70347,3699.0,3698.1,0.711]
[1718043333045,1.0,3698.8,3698.1,0.711]
[1718043333242,1.0,3698.8,3698.4,2.70381]
[1718043335335,0.711,3699.1,3698.1,2.70405]
[1718043335336,1.0,3698.4,3698.1,2.70405]
[1718043336576,1.0,3698.4,3698.1,3.41505]
[1718043341875,1.0,3698.4,3698.1,2.70405]
[1718043343142,1.0,3698.4,3698.1,3.41505]
[1718043347994,1.0,3698.4,3698.1,2.70405]
[1718043347995,3.3009,3698.4,3698.1,2.70405]
[1718043348199,3.63099,3698.4,3698.1,2.70405]
[1718043348758,1.33009,3698.4,3698.1,2.70405]
[1718043350267,1.0,3698.4,3698.1,2.70405]
[1718043350899,1.0,3697.9,3697.8,2.70424]
[1718043351665,1.0,3698.3,3698.0,2.70413]
[1718043353781,1.0,3698.3,3698.0,3.41513]
[1718043357902,1.0,3698.3,3698.0,0.711]
[1718043362015,1.0,3698.3,3698.1,2.70409]
[1718043362182,1.0,3698.7,3698.3,2.70394]
[1718043362384,1.0,3698.7,3698.3,5.00904]
[1718043363384,1.0,3698.7,3698.3,2.70394]
[1718043368691,1.0,3698.7,3698.2,0.711]
[1718043368900,1.0,3698.7,3698.3,0.85959]
[1718043369313,1.0,3698.7,3698.4,2.9884]
[1718043369834,1.0,3698.7,3698.5,2.70377]
[1718043370329,1.0,3698.7,3698.5,3.41477]
[1718043372027,1.0,3698.7,3698.5,2.70377]
[1718043373512,1.0,3699.1,3698.7,2.70362]
[1718043374639,1.87197042,3699.1,3698.7,2.70362]
[1718043374805,1.0,3698.7,3698.3,0.711]
[1718043376918,4.98363,3698.6,3697.8,0.5652202]
[1718043377124,4.98363,3698.6,3697.8,0.711]
[1718043377125,0.669463,3698.5,3697.8,0.711]
[1718043377336,2.70387,3698.4,3697.8,0.711]
[1718043377834,2.70387,3698.4,3698.0,0.711]
[1718043379921,1.0,3698.7,3698.2,0.711]
[1718043380248,1.42632255,3698.7,3698.2,0.711]
[1718043381636,1.42632255,3698.7,3698.2,3.415]
[1718043381822,1.0,3698.7,3698.2,3.415]
[1718043384421,1.0,3698.7,3698.2,2.704]
[1718043385754,2.13440308,3698.7,3698.2,2.704]
[1718043386127,1.0,3698.7,3698.2,2.704]
[1718043392240,1.0,3698.7,3698.4,2.70386]
[1718043395238,1.0,3698.7,3698.4,5.05886]
[1718043404263,1.0,3698.7,3698.4,2.70386]
[1718043414912,1.0,3698.7,3698.2,2.4773]
[1718043415819,1.0,3698.7,3697.9,0.5652202]
[1718043415820,1.0,3698.2,3697.9,0.5652202]
[1718043415992,1.0,3698.2,3697.8,2.3674]
[1718043416800,3.70402,3698.2,3697.8,2.3674]
[1718043418986,2.70383,3698.5,3698.1,0.711]
[1718043419294,2.70383,3698.5,3698.3,0.711]
[1718043419921,2.70383,3698.5,3697.9,2.9326202]
[1718043419922,2.70383,3698.5,3698.1,0.711]
[1718043420094,1.0,3698.6,3698.1,1.07536202]
[1718043422107,1.0,3698.6,3698.2,2.70401]
[1718043422283,1.0,3698.6,3698.4,2.70387]
[1718043424919,1.0,3698.6,3698.5,0.711]
[1718043425705,1.0,3698.6,3698.4,2.70387]
[1718043440310,1.33764,3698.6,3698.1,2.70402]
[1718043440515,1.0,3698.2,3697.9,0.5652202]
[1718043440929,1.0,3698.2,3697.5,1.13114586]
[1718043440930,1.0,3697.8,3697.5,3.2696802]
[1718043441131,1.0,3697.8,3697.5,2.70446]
[1718043441510,1.0,3697.8,3697.7,2.70438]
[1718043441732,1.0,3698.3,3698.0,2.70413]
[1718043445663,1.0,3698.8,3698.3,2.70389]
[1718043445864,1.0,3698.8,3698.3,4.98089]
[1718043448563,1.0,3698.8,3698.6,2.70369]
[1718043481194,1.0,3698.8,3698.3,3.41489]
[1718043481402,1.0,3698.8,3698.3,2.70389]
[1718043482186,1.0,3698.8,3698.3,3.41489]
[1718043484717,1.0,3698.8,3698.4,2.7038]
[1718043487099,1.58406354,3699.6,3698.7,0.711]
[1718043487404,1.0,3699.6,3699.5,3.0603]
[1718043490197,1.0,3699.6,3699.5,0.711]
[1718043490524,1.0,3699.6,3699.4,3.41412]
[1718043495428,1.0,3699.6,3699.1,2.7033]
[1718043495635,1.0,3699.6,3699.1,3.4143]
[1718043496895,1.0,3699.6,3699.3,2.70319]
[1718043497517,1.0,3699.6,3699.3,3.41419]
[1718043498851,1.0,3699.8,3699.3,3.41419]
[1718043500333,1.0,3699.8,3699.5,2.70305]
[1718043501103,1.0,3699.8,3699.5,3.41405]
[1718043502207,1.0,3699.8,3699.6,0.341405]
[1718043505247,1.0,3699.8,3699.5,2.70305]
[1718043505556,0.1244613,3699.9,3699.8,2.70284]
[1718043506115,0.1244613,3699.9,3699.8,3.41384]
[1718043508925,0.1244613,3699.9,3699.8,3.96384]
[1718043511856,0.0744613,3699.9,3699.8,3.96384]
[1718043512182,0.0744613,3699.9,3699.8,4.592444]
[1718043512682,0.0744613,3699.9,3699.8,6.343344]
[1718043512826,0.0744613,3699.9,3699.8,7.054344]
[1718043515237,0.0744613,3699.9,3699.8,6.343344]
[1718043515437,0.0744613,3699.9,3699.8,7.054344]
[1718043517163,3.7022,3700.7,3699.8,7.054344]
[1718043517370,3.7137694,3700.7,3700.1,0.711]
[1718043517932,2.7137694,3700.7,3700.1,0.711]
[1718043520237,1.0,3700.5,3700.1,0.711]
[1718043520436,1.0,3700.5,3700.1,1.37538434]
[1718043521389,1.0115694,3700.5,3700.1,1.37538434]
[1718043521699,1.0115694,3700.5,3700.2,2.70255]
[1718043522752,1.0115694,3700.5,3700.3,0.711]
[1718043523057,1.0115694,3700.5,3700.4,2.4703]
[1718043523565,1.0115694,3700.5,3700.4,3.098904]
[1718043529479,1.0115694,3700.5,3700.4,0.628604]
[1718043529680,1.0115694,3700.5,3700.3,3.41341]
[1718043530674,1.0115694,3700.5,3700.3,2.70241]
[1718043531061,1.0,3700.0,3699.7,2.70285]
[1718043531261,1.0,3700.0,3699.4,2.70307]
[1718043531492,1.0115694,3700.0,3699.4,2.70307]
[1718043531809,1.0115694,3700.0,3699.3,7.44]
[1718043531976,1.0,3699.5,3698.8,3.41454]
[1718043532178,1.0,3699.5,3699.0,0.711]
[1718043532528,1.0115694,3699.5,3699.0,0.711]
[1718043532808,1.0115694,3699.5,3698.8,2.70354]
[1718043533021,1.0115694,3699.5,3698.8,3.41454]
[1718043533216,1.0115694,3699.5,3698.8,3.04969319]
[1718043533443,1.0115694,3699.5,3698.8,3.76069319]
[1718043534019,1.0115694,3699.5,3698.8,3.04969319]
[1718043534323,2.70317,3699.4,3698.8,2.70354]
[1718043535508,1.0,3699.1,3698.6,0.711]
[1718043536626,1.0115694,3699.1,3698.6,0.711]
[1718043536780,1.0115694,3699.1,3698.5,2.75077192]
[1718043537110,1.0115694,3699.1,3698.7,0.711]
[1718043537282,1.0115694,3699.1,3698.7,1.30313719]
[1718043538589,1.0115694,3699.1,3698.7,4.00675719]
[1718043540679,1.0115694,3699.1,3698.7,0.59213719]
[1718043540885,1.0115694,3699.1,3698.6,0.711]
[1718043542478,1.0115694,3699.1,3698.1,2.70406]
[1718043542479,0.711,3699.0,3698.1,2.70406]
[1718043542719,1.0,3698.6,3698.1,2.70406]
[1718043543094,3.70375,3698.6,3697.8,2.70428]
[1718043543280,3.70375,3698.6,3697.8,2.974708]
[1718043543482,3.7153194,3698.6,3697.8,2.974708]
[1718043544024,1.0115694,3698.6,3697.8,2.974708]
[1718043544329,1.0,3698.2,3697.8,2.974708]
[1718043544543,1.0115694,3698.2,3697.8,3.685708]
[1718043544685,1.0115694,3698.2,3697.9,0.3685708]
[1718043545426,1.0115694,3698.2,3698.0,0.711]
[1718043545576,1.0115694,3698.2,3697.9,0.3685708]
[1718043545781,1.0115694,3698.2,3698.0,0.711]
[1718043546083,1.0115694,3698.2,3698.0,3.4151]
[1718043546307,1.0115694,3698.2,3698.0,3.79346708]
[1718043549516,1.0115694,3698.2,3698.0,3.76546708]
[1718043549716,1.0115694,3698.2,3698.0,3.3871]
[1718043551390,1.0115694,3698.2,3698.0,5.8728]
[1718043551927,1.0115694,3698.2,3698.0,5.1898]
[1718043552158,1.0115694,3698.2,3698.0,5.9008]
[1718043553558,1.0115694,3698.2,3698.0,2.7041]
[1718043553937,1.0115694,3698.2,3697.5,0.711]
[1718043553938,2.2552,3698.1,3697.5,0.711]
[1718043554119,2.2552,3698.1,3697.3,10.14466]
[1718043554467,1.0,3697.8,3697.0,2.70484]
[1718043554971,1.0,3697.8,3697.0,3.41584]
[1718043555148,1.0,3697.2,3696.7,2.70508]
[1718043555346,1.0,3697.2,3696.7,3.41608]
[1718043556976,1.0,3697.2,3696.7,2.70508]
[1718043558248,3.70477,3697.2,3696.7,2.70508]
[1718043558677,3.70477,3697.2,3696.4,2.70529]
[1718043558876,3.70477,3697.2,3696.5,1.261]
[1718043559252,1.0,3696.8,3696.1,2.7055]
[1718043559459,1.0,3696.8,3696.2,0.55]
[1718043559655,3.70509,3696.8,3696.1,2.7055]
[1718043559947,2.3248,3696.7,3696.1,2.7055]
[1718043560145,2.3248,3696.7,3695.9,8.151]
[1718043560351,2.70521,3696.6,3695.8,2.75277189]
[1718043560601,1.0,3696.2,3695.8,0.04702189]
[1718043560746,1.0,3696.2,3695.5,2.70598]
[1718043561387,1.0,3696.2,3695.1,7.44]
[1718043561388,2.70557,3696.1,3695.2,2.70619]
[1718043561591,2.70557,3696.1,3695.3,0.711]
[1718043561746,3.41657,3696.1,3695.2,2.70619]
[1718043561949,3.858227,3696.1,3695.2,3.41719]
[1718043562259,1.0,3695.7,3695.1,7.44]
[1718043562462,1.0,3695.7,3694.9,3.41742]
[1718043562665,1.0,3695.2,3694.5,2.7067]
[1718043562980,1.0,3695.2,3694.3,7.44]
[1718043563188,1.0,3695.2,3694.1,2.70696]
[1718043563189,1.0,3694.8,3694.1,2.70696]
[1718043563345,1.0,3694.8,3693.8,0.006]
[1718043563543,1.0,3694.8,3693.7,2.71327]
[1718043563779,1.0,3694.8,3693.7,3.795781]
[1718043564050,1.0,3694.8,3694.0,2.70706]
[1718043564249,1.0,3694.8,3694.1,0.270706]
[1718043564657,1.0,3694.8,3694.0,2.70706]
[1718043564864,1.0,3694.3,3693.8,0.006]
[1718043565187,1.0,3694.3,3693.6,2.70738]
[1718043565351,1.0,3693.9,3693.6,2.70738]
[1718043566585,1.0,3694.3,3693.6,2.978718]
[1718043566890,1.0,3694.3,3693.6,2.70738]
[1718043567089,1.0,3694.7,3693.9,2.70714]
[1718043567597,1.0,3694.7,3694.0,0.55]
[1718043567805,1.0,3694.7,3694.1,2.70696]
[1718043568495,2.70626,3695.2,3694.4,2.70677]
[1718043568675,1.0,3695.3,3694.7,2.70657]
[1718043569306,3.70597,3695.6,3694.7,2.70657]
[1718043569590,1.0,3695.5,3694.7,2.70657]
[1718043571777,2.70567,3696.0,3695.0,2.70634]
[1718043571952,1.0,3695.7,3695.2,2.7062]
[1718043572620,1.0,3695.3,3694.8,2.70645]
[1718043572962,0.5416427,3696.0,3694.2,7.446]
[1718043572963,1.0,3694.9,3694.4,2.70676]
[1718043573293,1.0,3694.4,3694.0,2.70703]
[1718043574601,1.0,3694.4,3694.2,2.70694]
[1718043579396,1.0,3694.4,3693.8,2.70717]
[1718043579589,1.0,3694.4,3693.7,3.0]
[1718043579590,1.0,3693.9,3693.7,3.0]
[1718043579797,1.0,3693.9,3693.4,2.70753]
[1718043579798,1.0,3693.9,3693.5,3.0]
[1718043582506,1.0,3693.9,3693.6,2.70737]
[1718043588306,2.2622,3694.3,3693.8,2.70719]
[1718043588307,1.0,3694.3,3693.8,2.70719]
[1718043588613,1.0,3694.3,3694.0,2.70704]
[1718043594010,1.0,3694.7,3694.3,2.70681]
[1718043594513,1.0,3694.7,3694.5,2.70668]
[1718043597321,2.3138,3695.2,3694.1,0.55]
[1718043597322,1.0,3695.1,3694.7,2.70654]
[1718043598288,1.0,3695.1,3694.9,2.7064]
[1718043600331,1.0,3695.1,3694.5,2.70665]
[1718043600853,1.0,3695.1,3694.5,0.270665]
[1718043600996,1.0,3695.1,3694.2,3.0]
[1718043601330,1.0,3695.1,3694.3,0.55]
[1718043601626,1.0,3695.1,3694.2,3.0]
[1718043601827,1.0,3695.1,3694.6,2.70663]
[1718043602498,1.0,3695.1,3694.8,2.70648]
[1718043605102,1.0,3694.7,3694.3,0.56210689]
[1718043605298,1.0,3694.3,3694.1,2.70696]
[1718043606397,3.076919,3695.1,3694.3,2.70684]
[1718043606398,1.0,3694.7,3694.3,2.70684]
[1718043608536,1.0,3694.2,3694.1,0.56210689]
[1718043608936,1.0,3694.2,3694.0,2.70707]
[1718043611061,1.33371,3694.2,3693.7,3.26936689]
[1718043611221,1.0,3693.7,3693.5,0.006]
[1718043611423,1.0,3693.7,3693.4,2.7075]
[1718043611727,1.0,3693.3,3693.2,0.006]
[1718043611920,1.0,3693.3,3693.1,2.7077]
[1718043618177,1.0,3693.3,3693.0,0.006]
[1718043618373,1.0,3693.3,3692.9,0.006]
[1718043619059,1.370743,3693.3,3692.9,0.006]
[1718043619225,1.0,3692.8,3692.5,2.70818]
[1718043621058,1.0,3692.8,3692.2,2.70838]
[1718043622026,1.0,3692.1,3691.8,2.70864]
[1718043622465,1.0,3692.1,3691.9,3.0]
[1718043622840,1.0,3692.1,3692.0,2.70855]
[1718043623035,1.0,3692.1,3692.0,5.70855]
[1718043623864,2.4237,3693.1,3692.3,2.7083]
[1718043623865,1.0,3692.5,3692.3,2.7083]
[1718043629376,1.0,3692.5,3692.0,2.70852]
[1718043629534,1.0,3692.1,3692.0,2.70852]
[1718043631470,1.0,3692.1,3691.7,10.14874]
[1718043631658,2.3693,3692.3,3691.4,2.70895]
[1718043631659,1.0,3691.7,3691.4,2.70895]
[1718043632473,1.0,3691.7,3691.4,2.979845]
[1718043634997,1.0,3691.7,3691.4,5.688835]
[1718043635193,1.0,3692.5,3692.3,2.70831]
[1718043636479,1.0,3692.1,3692.0,2.70851]
[1718043637471,1.0,3692.1,3692.0,2.979361]
[1718043641770,1.0,3692.1,3692.0,5.422161]
[1718043644063,1.0,3692.1,3692.0,2.979361]
[1718043644261,1.0,3692.1,3692.0,2.70851]
[1718043647104,1.0,3691.6,3691.4,2.70898]
[1718043650270,1.0,3691.6,3690.8,3.13325748]
[1718043650271,1.0,3691.0,3690.8,3.13325748]
[1718043650676,1.0,3691.0,3690.8,2.70939]
[1718043652684,1.0,3691.0,3690.7,0.04681971]
[1718043653703,2.4784,3690.9,3690.7,0.04681971]
[1718043653909,3.05727,3690.8,3690.7,0.04681971]
[1718043654117,1.0,3690.0,3689.9,0.42398504]
[1718043654271,1.0,3690.0,3689.5,2.75718404]
[1718043654471,0.34784,3690.8,3689.5,2.75718404]
[1718043654472,1.0,3689.6,3689.5,2.75718404]
[1718043654772,1.0,3689.6,3689.3,7.44]
[1718043655311,1.0,3689.6,3689.2,2.71061]
[1718043656534,5.18836,3690.1,3688.9,0.04684244]
[1718043656535,1.0,3689.1,3688.9,0.04684244]
[1718043657393,1.0,3689.1,3689.0,2.71076]
[1718043658600,1.0,3689.1,3688.9,0.04684244]
[1718043658801,1.0,3688.7,3688.2,10.15129]
[1718043660484,1.0,3688.7,3688.2,2.71129]
[1718043660713,1.0,3688.3,3688.1,0.42418956]
[1718043661098,2.71107,3688.6,3687.6,0.04685444]
[1718043661099,1.0,3687.8,3687.6,0.04685444]
[1718043661708,1.0,3687.8,3687.5,7.44]
[1718043662893,1.0,3687.8,3687.5,10.15183]
[1718043663097,1.0,3687.8,3687.7,2.71171]
[1718043665123,1.0,3688.2,3687.7,2.71171]
[1718043665301,1.0,3688.2,3688.0,2.71143]
[1718043668120,5.0486,3688.7,3687.0,7.48684511]
[1718043668121,1.0,3687.8,3687.6,2.71174]
[1718043668545,1.0,3687.8,3687.0,7.48684511]
[1718043668546,1.0,3687.3,3687.2,2.71202]
[1718043670799,1.0,3687.8,3687.5,2.71182]
[1718043672254,1.0,3688.1,3687.0,0.04684511]
[1718043672553,1.0,3688.1,3687.9,2.71155]
[1718043683575,1.0,3688.7,3688.6,2.71104]
[1718043683786,2.71034,3689.6,3688.8,2.71084]
[1718043683787,1.0,3689.1,3688.8,2.71084]
[1718043684429,1.0,3688.6,3688.5,2.71111]
[1718043685532,1.0,3688.6,3688.2,7.44]
[1718043685841,1.0,3688.6,3688.2,10.15132]
[1718043686255,1.33442,3688.6,3688.2,7.44]
[1718043687581,1.0,3688.2,3687.9,2.71155]
[1718043688143,1.0,3688.2,3687.5,2.71181]
[1718043688344,1.0,3687.4,3687.3,0.04674025]
[1718043688667,1.0,3687.4,3687.1,2.71209]
[1718043690561,1.0,3687.0,3686.9,0.1143422]
[1718043691294,1.602454,3687.0,3686.9,0.1143422]
[1718043692365,1.0,3686.0,3685.9,0.42443714]
[1718043692565,1.0,3685.5,3685.4,2.71012405]
[1718043694749,1.0,3686.0,3685.7,2.71316]
[1718043696082,2.71244,3686.8,3685.0,5.68349689]
[1718043696083,1.0,3686.4,3686.0,2.71291]
[1718043697601,1.0,3686.4,3686.0,3.216691]
[1718043700783,1.0,3686.4,3686.3,2.71274]
[1718043702784,1.0,3686.4,3685.9,2.71297]
[1718043705513,1.0,3686.0,3685.9,2.71297]
[1718043713020,1.0,3686.6,3686.3,2.71268]
[1718043728960,3.219888,3687.2,3686.5,2.71253]
[1718043729449,1.0,3686.6,3686.5,2.71253]
[1718043736980,1.0,3686.6,3686.5,5.42513]
[1718043737158,1.0,3686.6,3686.5,2.71253]
[1718043737354,3.2976378,3687.9,3686.5,2.71253]
[1718043737355,1.0,3687.0,3686.9,2.7123]
[1718043738178,1.0,3687.0,3686.9,5.4246]
[1718043738382,1.0,3687.4,3687.3,2.71201]
[1718043739377,1.0,3688.0,3687.9,2.71155]
[1718043739786,0.33442,3688.6,3687.9,2.71155]
[1718043739787,1.0,3688.1,3687.9,2.71155]
[1718043741391,1.0,3688.1,3687.9,3.40579965]
[1718043742086,1.0,3688.1,3687.9,2.71155]
[1718043747068,1.0,3688.5,3688.4,2.7112]
[1718043747478,2.3269,3689.1,3688.7,2.71095]
[1718043747677,1.0,3688.8,3688.7,2.71095]
[1718043753676,1.0,3688.4,3688.0,2.71148]
[1718043754072,1.0,3688.4,3688.1,2.7114]
[1718043761814,1.0,3688.6,3688.5,2.71108]
[1718043763821,1.0,3688.1,3687.7,7.44]
[1718043764904,1.0,3688.1,3687.8,2.71162]
[1718043767871,1.0,3688.1,3687.7,7.44]
[1718043768151,0.37113,3688.0,3687.7,7.44]
[1718043769416,1.0,3687.5,3687.4,2.7119]
[1718043783204,1.0,3687.5,3687.4,3.4269]
[1718043793491,1.0,3687.5,3687.4,2.7119]
[1718043793718,1.0,3687.5,3687.4,3.4269]
[1718043794225,1.0,3687.5,3687.4,2.7119]
[1718043794720,1.0,3687.5,3687.4,3.4269]